Cogmind - Beta 15 --- EXPLORER MODE // 2025.07.28 @ 00:12:26 Player: swetpototo Result: Self-destructed Performance ------------- Evolutions (5) 2500 Regions Visited (13) 2600 Robots Destroyed (117) 585 Value Destroyed (5212) 5212 Prototype IDs (7) 140 Alien Tech Used (0) 0 Bonus (3337) 3337 TOTAL SCORE: 14374 Bonus ------- High Alert Combat Kills 150 Follower Combat Kills 387 Entered Garrisons 800 Used RIF Installer 1500 Entered DSFs 500 Cogmind --------- Core Integrity 1000/1000 Matter 300/300 Energy 340/340 System Corruption 0% Temperature Cool (0) Movement Rolling (180) Ox6 Location -5/Factory Parts ------- > --- POWER (2) -------- Improved Deuterium Engine Micro Nuclear Core > --- PROPULSION (4) --- Flexi-carbon Leg Armored Wheel > --- UTILITY (8) ------ Advanced Heat Sink Large Storage Unit Core Shielding Improved Light Armor Plating Tractor Beam > --- WEAPON (4) ------- Magnetic Acceleration Cannon Magnetic Acceleration Cannon Magnetic Acceleration Cannon Magnetic Acceleration Cannon > --- INVENTORY (15) --- Light Angular Momentum Engine Compact Matter Pod (150) Advanced Visual Processing Unit Recoil Stabilizer Hacking Suite Relay Coupler [NC] (45) Relay Coupler [Hunter] (23) Magnetic Acceleration Cannon Magnetic Acceleration Cannon Heavy Rocket Launcher Improved Datajack Improved Datajack Chainsword Peak State ------------ > --- POWER ------------ Micro Nuclear Core Light Angular Momentum Engine > --- PROPULSION ------- Flexi-carbon Leg Flexi-carbon Leg Armored Wheel Armored Wheel > --- UTILITY ---------- Improved Heat Sink Advanced Heat Sink Large Storage Unit Core Shielding Relay Coupler [Grunt] Relay Coupler [Sentry] > --- WEAPON ----------- Magnetic Acceleration Cannon Magnetic Acceleration Cannon Magnetic Acceleration Cannon Magnetic Acceleration Cannon > --- INVENTORY -------- Light Angular Momentum Engine Armored Wheel Compact Matter Pod Advanced Visual Processing Unit Recoil Stabilizer Hacking Suite Relay Coupler [NC] Relay Coupler [Hunter] Tractor Beam Magnetic Acceleration Cannon Magnetic Acceleration Cannon Heavy Rocket Launcher Improved Datajack Improved Datajack Chainsword [Rating: 65] Favorites ----------- Power Ion Engine Engine Ion Engine Power Core Nuclear Core Propulsion Armored Wheel Leg Aluminum Leg Wheel Armored Wheel Utility Large Storage Unit Device Advanced Heat Sink Storage Large Storage Unit Hackware Relay Coupler [Grunt] Protection Hardened Light Armor Plating Weapon High-powered Shotgun Energy Gun EM Pulse Gun Energy Cannon Heavy Plasma Cannon Ballistic Gun High-powered Shotgun Ballistic Cannon Magnetic Acceleration Cannon Launcher Heavy Rocket Launcher Slashing Weapon Chainsword Special Melee Weapon Improved Datajack Build | -11 -10 -9 -8 -8 -8 -7 -7 -7 -7 -6 -6 -6 -5 ------- Run | Yrd Mat Mat Mat Gar Mat Fac Gar Sto Gar Fac DSF Gar Fac Slots Evolved 11 | . 1 2 2 . . 2 . . . 2 . . 2 Power 1 | . 1 . . . . . . . . . . . . Propulsion 2 | . . . . . . . . . . 2 . . . Utility 6 | . . 2 . . . 2 . . . . . . 2 Weapon 2 | . . . 2 . . . . . . . . . . Parts Attached 63 | . 1 8 11 5 6 2 7 1 4 3 8 7 . Power 12 | . 1 1 2 . 2 . 2 . 1 1 . 2 . Engine 8 | . . 1 1 . 2 . 2 . 1 . . 1 . Core 4 | . 1 . 1 . . . . . . 1 . 1 . Reactor . | . . . . . . . . . . . . . . Propulsion 6 | . . 2 . . . . . 1 . 2 . 1 . Treads . | . . . . . . . . . . . . . . Leg 2 | . . . . . . . . . . 2 . . . Wheel 4 | . . 2 . . . . . 1 . . . 1 . Hover . | . . . . . . . . . . . . . . Flight . | . . . . . . . . . . . . . . Utility 19 | . . 3 1 1 4 2 2 . 1 . 1 4 . Device 5 | . . . 1 1 . . . . . . 1 2 . Storage 2 | . . 1 . . . 1 . . . . . . . Processor . | . . . . . . . . . . . . . . Hackware 5 | . . . . . 3 . 1 . 1 . . . . Protection 7 | . . 2 . . 1 1 1 . . . . 2 . Artifact . | . . . . . . . . . . . . . . Weapon 26 | . . 2 8 4 . . 3 . 2 . 7 . . Energy Gun 1 | . . . 1 . . . . . . . . . . Energy Cannon 2 | . . . . . . . . . . . 2 . . Ballistic Gun 13 | . . 2 6 3 . . 2 . . . . . . Ballistic Cannon 6 | . . . . . . . . . 1 . 5 . . Launcher 1 | . . . . . . . . . 1 . . . . Special Weapon . | . . . . . . . . . . . . . . Impact Weapon . | . . . . . . . . . . . . . . Slashing Weapon 1 | . . . 1 . . . . . . . . . . Piercing Weapon . | . . . . . . . . . . . . . . Special Melee Weapon 2 | . . . . 1 . . 1 . . . . . . Unidentified Prototypes 1 | . . . . . 1 . . . . . . . . Parts Lost 21 | . . . 1 1 2 . 2 . 5 . 1 9 . Power 4 | . . . 1 . . . . . 1 . . 2 . Propulsion 4 | . . . . . . . 1 . . . . 3 . Utility 8 | . . . . 1 1 . 1 . 1 . . 4 . Weapon 5 | . . . . . 1 . . . 3 . 1 . . Highest Loss Streak 6 | . . . 1 1 1 . 2 . 2 . 1 6 . To Critical Strikes 1 | . . . . . 1 . . . . . . . . Average Backups 13 | . 7 8 14 15 14 15 14 13 14 15 15 13 13 Power 1 | . 1 1 1 . . 1 1 2 2 2 1 1 1 Propulsion 1 | . 2 1 2 2 2 2 2 1 1 1 1 . . Utility 6 | . 3 3 6 8 8 6 5 5 7 8 7 6 6 Weapon 3 | . 1 2 3 3 3 3 4 3 2 2 2 4 4 Tool/Special . | . . . . . . . . . . . . . . Unused Backups 37 | . 7 5 5 7 3 1 1 . . . . . 8 Power 4 | . 1 . 2 . . . . . . . . . 1 Propulsion 4 | . 2 2 . . . . . . . . . . . Utility 21 | . 2 3 2 5 2 1 1 . . . . . 5 Weapon 7 | . 2 . . 2 1 . . . . . . . 2 Tool/Special 1 | . . . 1 . . . . . . . . . . Average Slot Usage (%) 94 | . 96 79 99 98 98 86 97 100 96 76 88 86 72 Engine 9 | . 12 10 3 8 14 14 14 14 13 10 6 3 5 Core 6 | . 8 10 12 8 1 . . . . 1 6 7 5 Leg 3 | . 25 13 . . . . . . . 8 12 8 5 Wheel 13 | . . 6 16 16 16 14 12 14 14 12 12 7 5 Device 6 | . . . 4 8 8 7 7 7 7 6 7 11 11 Storage 8 | . 12 10 8 8 8 7 14 14 11 6 6 6 5 Hackware 3 | . . . . . 7 7 7 7 9 12 12 3 . Protection 12 | . 12 10 19 13 7 8 13 14 13 6 6 12 11 Ballistic Gun 23 | . 25 19 31 28 29 21 24 21 18 6 2 . . Ballistic Cannon 2 | . . . . . . . . . 2 6 12 25 22 Slashing Weapon 1 | . . . 1 4 1 7 1 7 2 . . . . Peak Build Rating 65 | . 11 19 36 36 37 43 45 46 47 47 65 65 50 Average Rating 34 | . 9 12 29 34 35 37 43 46 44 44 55 55 50 On Entrance 34 | 7 7 11 19 34 36 37 43 45 46 37 47 65 50 Naked Turns . | . . . . . . . . . . . . . . Heaviest Build 77 | 19 24 47 55 55 52 56 59 59 62 49 70 77 74 Greatest Support 24 | 20 20 24 24 24 24 24 24 24 24 24 24 24 12 Greatest Overweight (x) 7 | . 1 7 2 2 2 2 4 2 2 4 2 6 6 Average Overweight (x) 2 | . . 1 2 2 1 2 2 2 2 1 1 4 6 Largest Inventory Capacity 15 | . 10 15 15 15 15 15 15 15 15 15 15 15 15 Average Capacity 14 | . 10 11 15 15 15 15 15 15 15 15 15 15 15 Most Carried 15 | . 8 11 15 15 15 15 15 13 15 15 15 15 13 Average Carried 13 | . 7 8 14 14 14 15 14 13 14 15 14 13 13 Final Capacity 15 | 10 10 15 15 15 15 15 15 15 15 15 15 15 15 Final Carried 15 | 7 8 11 15 15 15 15 14 13 15 15 15 13 13 Class Distribution -------------------- 46% | Hacker-Tank 20% | Bothacker-Tank 13% | Hacker-Mutant 13% | Scavenger-Tank 3% | Bothacker-Mutant Dominant Class ---------------- Hacker-Mutant | -10/Materials Hacker-Mutant | -9/Materials Hacker-Tank | -8/Materials Hacker-Tank | -8/Garrison Bothacker-Tank | -8/Materials Hacker-Tank | -7/Factory Hacker-Tank | -7/Garrison Hacker-Tank | -7/Storage Scavenger-Tank | -7/Garrison Bothacker-Mutant | -6/Factory Bothacker-Tank | -6/DSF Scavenger-Tank | -6/Garrison Hacker-Tank | -5/Factory Resources | -11 -10 -9 -8 -8 -8 -7 -7 -7 -7 -6 -6 -6 -5 ----------- Run | Yrd Mat Mat Mat Gar Mat Fac Gar Sto Gar Fac DSF Gar Fac Matter Collected 3833 | 200 8 130 685 659 384 73 396 . 496 . 39 753 10 Remotely 452 | . . . . . . . . . . . . 442 10 Salvage Created 3501 | . 48 246 870 748 455 . 220 . 387 . . 527 . Parts 220 | . 3 14 63 56 27 . 10 . 15 . . 32 . Haulers Intercepted 6 | . . 1 2 . 3 . . . . . . . . Recyclers Shooed . | . . . . . . . . . . . . . . Parts Field Recycled . | . . . . . . . . . . . . . . Retrieved Matter . | . . . . . . . . . . . . . . Parts Self-Destructed . | . . . . . . . . . . . . . . Prevented . | . . . . . . . . . . . . . . Kills | -11 -10 -9 -8 -8 -8 -7 -7 -7 -7 -6 -6 -6 -5 ------- Run | Yrd Mat Mat Mat Gar Mat Fac Gar Sto Gar Fac DSF Gar Fac Combat Hostiles Destroyed 105 | . 1 5 26 26 8 . 8 . 12 . . 19 . Melee 7 | . . . 4 3 . . . . . . . . . Guns 76 | . 1 5 22 23 8 . 8 . 9 . . . . Cannons 19 | . . . . . . . . . . . . 19 . AOE 3 | . . . . . . . . . 3 . . . . Classes Destroyed 14 | . 1 1 6 1 2 . 1 . 1 . . 1 . Worker 1 | . . . 1 . . . . . . . . . . Hauler 6 | . . 1 2 . 3 . . . . . . . . Recycler 1 | . . . . . 1 . . . . . . . . Operator 3 | . . . 1 . 2 . . . . . . . . Watcher 1 | . . . . . 1 . . . . . . . . Swarmer 40 | . . . 13 10 2 . 5 . 3 . . 7 . Grunt 32 | . 1 5 7 5 4 . . . 4 . . 6 . Brawler 2 | . . . 1 1 . . . . . . . . . Duelist 2 | . . . . . . . 2 . . . . . . Sentry 18 | . . . 4 8 2 . 1 . 1 . . 2 . Specialist 4 | . . . . 1 . . . . 2 . . 1 . Hunter 4 | . . . 1 1 . . . . . . . 2 . Programmer 2 | . . . . . . . . . 2 . . . . Behemoth 1 | . . . . . . . . . . . . 1 . Best Kill Streak 11 | . 1 3 11 7 4 . 3 . 3 . . 9 . Combat Bots Only 9 | . 1 3 9 7 3 . 3 . 3 . . 9 . Max Kills in Single Turn 2 | . 1 1 2 2 1 . 2 . 2 . . 1 . Gunslinging 1 | . . . 1 1 . . 1 . . . . . . Exploded 2 | . . . . . . . . . 2 . . . . Melee 1 | . . . 1 1 . . . . . . . . . Uniques/NPCs Destroyed . | . . . . . . . . . . . . . . Combat | -11 -10 -9 -8 -8 -8 -7 -7 -7 -7 -6 -6 -6 -5 -------- Run | Yrd Mat Mat Mat Gar Mat Fac Gar Sto Gar Fac DSF Gar Fac Hostile Shots Fired 681 | . 13 29 80 64 38 . 182 . 96 . 6 173 . Missed 210 | . 3 9 24 17 6 . 66 . 30 . 3 52 . Hits 471 | . 10 20 56 47 32 . 116 . 66 . 3 121 . Melee 9 | . . . . . . . 9 . . . . . . Projectile 462 | . 10 20 56 47 32 . 107 . 66 . 3 121 . AOE 5 | . . . . 5 . . . . . . . . . Critical Strikes 8 | . . . 2 1 1 . 1 . 1 . . 2 . Damage Taken 4391 | . 73 147 497 542 397 . 793 . 482 . 84 1376 . Core 352 | . 13 . 88 33 37 . 71 . 28 . 13 69 . Absorbed by Shields . | . . . . . . . . . . . . . . Redirected to Shielding 40 | . 9 5 5 . . . 3 . 4 . . 14 . Ignored by Resistances 2715 | . 45 94 311 328 240 . 520 . 310 . 48 819 . Regen/Repaired (Parts) 82 | . . . . . 82 . . . . . . . . Core Remaining (%) 90 | 100 94 100 . . 71 . . . 85 . . 90 . Volleys Fired 173 | . 2 15 32 35 21 . 15 . 20 . 5 28 . Largest 4 | . 2 2 4 4 4 . 4 . 4 . 1 4 . Hottest 176 | . 40 46 100 100 100 . 103 . 115 . 90 176 . Shots Fired 601 | . 4 30 127 131 77 . 56 . 63 . 5 108 . Gun 471 | . 4 30 127 131 77 . 56 . 46 . . . . Cannon 128 | . . . . . . . . . 15 . 5 108 . Launcher 2 | . . . . . . . . . 2 . . . . Special . | . . . . . . . . . . . . . . Kinetic 597 | . 4 30 127 131 77 . 56 . 61 . 3 108 . Thermal 2 | . . . . . . . . . . . 2 . . Explosive 2 | . . . . . . . . . 2 . . . . Electromagnetic . | . . . . . . . . . . . . . . Robot Hit Streak 38 | . 3 12 17 12 15 . 23 . 38 . . 29 . Robot Miss Streak 8 | . . 3 5 6 5 . 8 . 3 . . 2 . Penetration Max . | . . . . . . . . . . . . . . Secondary Targets 18 | . . 1 7 4 2 . 3 . 1 . . . . Max Gunslinging Chain 1 | . . 1 1 1 1 . 1 . 1 . . . . Shots Hit Robots 449 | . 3 26 96 93 66 . 45 . 52 . . 68 . Core Hits 249 | . 3 12 54 54 28 . 34 . 33 . . 31 . Critical Kills . | . . . . . . . . . . . . . . Critical Parts Destroyed 2 | . . . 1 . 1 . . . . . . . . Critical Strikes 8 | . . . 1 . 1 . . . . . . 6 . Destroy 2 | . . . 1 . 1 . . . . . . . . Blast 6 | . . . . . . . . . . . . 6 . Melee Attacks 53 | . . . 8 23 14 . 4 . 4 . . . . Impact . | . . . . . . . . . . . . . . Slashing 37 | . . . 8 23 2 . 2 . 2 . . . . Piercing . | . . . . . . . . . . . . . . Sneak Attacks 2 | . . . . 1 1 . . . . . . . . Combat Hostiles . | . . . . . . . . . . . . . . Follow-up Attacks . | . . . . . . . . . . . . . . Damage Inflicted 9296 | . 34 356 1610 1846 1035 . 933 . 1367 . . 2115 . Guns 6245 | . 34 355 1436 1665 1035 . 933 . 787 . . . . Cannons 2296 | . . . . . . . . . 189 . . 2107 . Explosions 360 | . . . . . . . . . 360 . . . . Melee 386 | . . . 174 181 . . . . 31 . . . . Ramming 9 | . . 1 . . . . . . . . . 8 . Kinetic 8541 | . 34 355 1436 1665 1035 . 933 . 976 . . 2107 . Thermal . | . . . . . . . . . . . . . . Explosive 360 | . . . . . . . . . 360 . . . . Electromagnetic . | . . . . . . . . . . . . . . Impact . | . . . . . . . . . . . . . . Slashing 386 | . . . 174 181 . . . . 31 . . . . Piercing . | . . . . . . . . . . . . . . Highest Corruption 2 | . . 1 . 1 2 . 1 2 2 . . . . Average Corruption 1 | . . 1 . 1 1 . 1 1 2 . . . . Corruption Purged . | . . . . . . . . . . . . . . Corruption Blocked . | . . . . . . . . . . . . . . Effects 19 | . . 4 . 4 7 . 3 . 1 . . . . Message Errors 7 | . . 3 . 2 1 . 1 . . . . . . Matter Fused 5 | . . 1 . 1 3 . . . . . . . . Energy Discharges 4 | . . . . . 2 . 1 . 1 . . . . Parts Rejected 1 | . . . . . 1 . . . . . . . . Data Loss (minor) 1 | . . . . . . . 1 . . . . . . Data Loss (major) 1 | . . . . 1 . . . . . . . . . Overload Shots . | . . . . . . . . . . . . . . Overflow Damage 67 | . . . 39 . . . . . 14 . . 14 . Projectiles 14 | . . . . . . . . . . . . 14 . Explosions 14 | . . . . . . . . . 14 . . . . Melee 39 | . . . 39 . . . . . . . . . . Knockbacks 11 | . . . . . . . . . 2 . . 9 . Impact . | . . . . . . . . . . . . . . Kinetic 8 | . . . . . . . . . 2 . . 6 . Secondary 3 | . . . . . . . . . . . . 3 . Self-Inflicted Damage 69 | . . . 65 . . . . . . . . 4 . Shots 1 | . . . 1 . . . . . . . . . . Rammed 1 | . . . . . . . . . . . . 1 . Targets Rammed 2 | . . 1 . . . . . . . . . 1 . Kicked 1 | . . 1 . . . . . . . . . . . Crushed . | . . . . . . . . . . . . . . Highest Temperature 384 | . 9 32 384 79 7 . 17 . 27 . . 299 . Average Temperature 55 | . 9 11 91 29 5 . 9 . 7 . . 62 . Received Heat Transfer 1803 | . 66 114 234 216 183 . 222 . 177 . . 591 . Effects 2 | . . . 2 . . . . . . . . . . Shutdowns 1 | . . . 1 . . . . . . . . . . Damage (minor) 1 | . . . 1 . . . . . . . . . . Siege Activations . | . . . . . . . . . . . . . . Martial Activations . | . . . . . . . . . . . . . . Shielding Activations . | . . . . . . . . . . . . . . Robots Disrupted . | . . . . . . . . . . . . . . Combat Hostiles . | . . . . . . . . . . . . . . Robots Corrupted . | . . . . . . . . . . . . . . Combat Hostiles . | . . . . . . . . . . . . . . Parts Fried . | . . . . . . . . . . . . . . Impact Corruptions . | . . . . . . . . . . . . . . Robots Melted . | . . . . . . . . . . . . . . Combat Hostiles . | . . . . . . . . . . . . . . Parts Melted 1 | . . . . . . . . . . . . 1 . Heat Transferred . | . . . . . . . . . . . . . . Parts Sabotaged . | . . . . . . . . . . . . . . Parts Stolen . | . . . . . . . . . . . . . . Parts Stripped . | . . . . . . . . . . . . . . Power Chain Reactions . | . . . . . . . . . . . . . . Alert | -11 -10 -9 -8 -8 -8 -7 -7 -7 -7 -6 -6 -6 -5 ------- Run | Yrd Mat Mat Mat Gar Mat Fac Gar Sto Gar Fac DSF Gar Fac Maximum Alert Level 3 | . . . 1 3 1 . 1 . 1 . . 1 . Low Security (%) 61 | . 100 100 91 21 59 100 41 100 41 100 100 49 100 Level 1 23 | . . . 8 13 40 . 58 . 58 . . 50 . Level 2 11 | . . . . 50 . . . . . . . . . Level 3 3 | . . . . 14 . . . . . . . . . Level 4 . | . . . . . . . . . . . . . . Level 5 . | . . . . . . . . . . . . . . High Security . | . . . . . . . . . . . . . . Max Security . | . . . . . . . . . . . . . . Peak Influence 980 | . 37 55 241 980 356 30 320 114 368 157 50 360 140 Initial 350 | . . . . 54 350 18 . 114 55 143 45 28 140 Average 210 | . 10 6 78 487 200 9 193 114 221 120 45 201 140 Influence Increases 3641 | . 56 139 764 936 498 30 341 . 423 17 15 422 . Destroy 0b10 Robot/C 2320 | . 20 100 520 520 260 20 200 . 300 . . 380 . Destroy 0b10 Robot/NC 75 | . . 5 20 5 45 . . . . . . . . Destroy Leader 356 | . 10 22 134 20 80 10 20 . 30 . . 30 . Allied During Kill 31 | . . . . 6 16 . . . 9 . . . . Trap Triggered on 0b10 10 | . . . 10 . . . . . . . . . . Successful Hack 66 | . 11 12 10 5 11 . . . . 17 . . . Disable Machine 36 | . . . 8 . 28 . . . . . . . . Anti-Garrison Action 500 | . . . . 350 . . 100 . 50 . . . . Destroy Structure 157 | . . . 17 30 58 . 6 . 34 . . 12 . Lose Combat Pursuer 90 | . 15 . 45 . . . 15 . . . 15 . . Influence Decreases 3501 | . 56 139 653 67 1420 88 21 206 169 300 50 112 220 Entered New Map 1499 | . . . . 57 630 40 . 206 59 225 40 22 220 Time Decay 1351 | . 56 139 493 . 540 48 . . . 75 . . . Lost Part 210 | . . . 10 10 20 . 20 . 50 . 10 90 . Lost Ally 141 | . . . . . 80 . 1 . 60 . . . . Purge Threat 300 | . . . 150 . 150 . . . . . . . . Squads Dispatched 10 | . . 3 4 . 2 . . . . . 1 . . Investigation 3 | . . 2 1 . . . . . . . . . . Extermination . | . . . . . . . . . . . . . . Reinforcement 4 | . . 1 . . 2 . . . . . 1 . . Assault . | . . . . . . . . . . . . . . Garrison 3 | . . . 3 . . . . . . . . . . Intercept . | . . . . . . . . . . . . . . Searches Triggered . | . . . . . . . . . . . . . . Construction Impeded 1 | . . . . . 1 . . . . . . . . Haulers Reinforced . | . . . . . . . . . . . . . . Active Scanning Responses . | . . . . . . . . . . . . . . Cargo Convoy Interrupts . | . . . . . . . . . . . . . . Stealth | -11 -10 -9 -8 -8 -8 -7 -7 -7 -7 -6 -6 -6 -5 --------- Run | Yrd Mat Mat Mat Gar Mat Fac Gar Sto Gar Fac DSF Gar Fac Distress Signals 5 | . . 2 1 . 2 . . . . . . . . Communications Jammed . | . . . . . . . . . . . . . . Distress Signals . | . . . . . . . . . . . . . . Times Spotted 159 | . 3 13 31 31 29 1 15 . 15 . 3 18 . Peak Tracking Total 8 | . 2 4 4 5 5 1 7 . 4 . 3 8 . Tactical Retreats 4 | . 1 . 1 . . . 1 . . . 1 . . Traps | -11 -10 -9 -8 -8 -8 -7 -7 -7 -7 -6 -6 -6 -5 ------- Run | Yrd Mat Mat Mat Gar Mat Fac Gar Sto Gar Fac DSF Gar Fac Traps Triggered 22 | . . . . 7 2 . 8 1 . . 3 1 . Indirectly . | . . . . . . . . . . . . . . Trap Hack Attempts 5 | . . . . 5 . . . . . . . . . Triggered . | . . . . . . . . . . . . . . Disarmed 1 | . . . . 1 . . . . . . . . . Reprogrammed 10 | . . . 10 . . . . . . . . . . Reused 1 | . . . 1 . . . . . . . . . . Traps Extracted . | . . . . . . . . . . . . . . Installed . | . . . . . . . . . . . . . . Triggered 1 | . . . 1 . . . . . . . . . . Machines | -11 -10 -9 -8 -8 -8 -7 -7 -7 -7 -6 -6 -6 -5 ---------- Run | Yrd Mat Mat Mat Gar Mat Fac Gar Sto Gar Fac DSF Gar Fac Machines Disabled 15 | . . . 2 4 7 . 1 . 1 . . . . Max in Single Turn 2 | . . . 2 1 1 . 1 . 1 . . . . Garrison Access 1 | . . . . . 1 . . . . . . . . Garrison Relay 6 | . . . . 4 . . 1 . 1 . . . . Phase Generator 1 | . . . . 1 . . . . . . . . . Machines Repaired . | . . . . . . . . . . . . . . Machines Dismantled . | . . . . . . . . . . . . . . Machines Sabotaged . | . . . . . . . . . . . . . . Overloaded Fab Kills . | . . . . . . . . . . . . . . Hacking | -11 -10 -9 -8 -8 -8 -7 -7 -7 -7 -6 -6 -6 -5 --------- Run | Yrd Mat Mat Mat Gar Mat Fac Gar Sto Gar Fac DSF Gar Fac Machines Accessed 27 | . 2 4 6 4 5 1 1 1 1 2 . . . Terminals 22 | . 2 4 5 4 3 . 1 . 1 2 . . . Fabricators . | . . . . . . . . . . . . . . Repair Stations 1 | . . . . . 1 . . . . . . . . Recycling Units . | . . . . . . . . . . . . . . Scanalyzers . | . . . . . . . . . . . . . . Garrison Access 4 | . . . 1 . 1 1 . 1 . . . . . Total Hacks 80 | . 7 14 23 7 17 2 2 1 2 5 . . . Successful 41 | . 4 6 11 3 11 2 . 1 1 2 . . . Failed 39 | . 3 8 12 4 6 . 2 . 1 3 . . . Catastrophic 5 | . 1 . 2 . . . . . 1 1 . . . Database Lockouts . | . . . . . . . . . . . . . . Manual 32 | . 7 12 2 . 11 . . . . . . . . Terminals 72 | . 7 14 22 7 13 . 2 . 2 5 . . . Fabricators . | . . . . . . . . . . . . . . Repair Stations 2 | . . . . . 2 . . . . . . . . Recycling Units . | . . . . . . . . . . . . . . Scanalyzers . | . . . . . . . . . . . . . . Garrison Access 6 | . . . 1 . 2 2 . 1 . . . . . Terminal Hacks 29 | . 3 5 10 3 5 . . . 1 2 . . . Prototype ID Bank 3 | . 1 1 1 . . . . . . . . . . Open Door 1 | . . . . 1 . . . . . . . . . Open DSF 1 | . . . . . . . . . . 1 . . . Level Access Points 2 | . 1 . . . . . . . . 1 . . . Emergency Access Points 2 | . . . 1 1 . . . . . . . . . Machine Index 1 | . . . 1 . . . . . . . . . . Alert Level 2 | . . . 1 . 1 . . . . . . . . Unreport Threat 2 | . . . 1 . 1 . . . . . . . . Locate Traps 1 | . . . 1 . . . . . . . . . . Reprogram Traps 2 | . . . 2 . . . . . . . . . . Patrol Status 1 | . . . . . 1 . . . . . . . . Transport Status 1 | . . 1 . . . . . . . . . . . Garrison Status 1 | . . . . . 1 . . . . . . . . Hauler Manifests 2 | . . 1 . . 1 . . . . . . . . Registered Components 3 | . 1 1 1 . . . . . . . . . . Zone Layout 2 | . . 1 1 . . . . . . . . . . Garrison Registry 1 | . . . . 1 . . . . . . . . . Patrol Navigation 1 | . . . . . . . . . 1 . . . . Fabricator Hacks . | . . . . . . . . . . . . . . Repair Station Hacks 2 | . . . . . 2 . . . . . . . . Scan Component 1 | . . . . . 1 . . . . . . . . Repair 1 | . . . . . 1 . . . . . . . . Recycling Unit Hacks . | . . . . . . . . . . . . . . Scanalyzer . | . . . . . . . . . . . . . . Garrison Access Hacks 6 | . . . 1 . 2 2 . 1 . . . . . Unlock Access 3 | . . . 1 . . 1 . 1 . . . . . Seal Access 1 | . . . . . 1 . . . . . . . . Coupler Status 2 | . . . . . 1 1 . . . . . . . Unauthorized Hacks 4 | . 1 1 . . 2 . . . . . . . . Terminals 4 | . 1 1 . . 2 . . . . . . . . Botnet 4 | . 1 1 . . 2 . . . . . . . . Fabricators . | . . . . . . . . . . . . . . Repair Stations . | . . . . . . . . . . . . . . Recycling Units . | . . . . . . . . . . . . . . Scanalyzers . | . . . . . . . . . . . . . . Garrison Access . | . . . . . . . . . . . . . . Data Cores Recovered 3 | . . . 1 . 2 . . . . . . . . Used . | . . . . . . . . . . . . . . Hacking Detections 21 | . 2 4 6 2 2 1 1 . 1 2 . . . Full Trace Events 8 | . 1 3 2 1 . . 1 . . . . . . Feedback Events 3 | . . 1 . 1 . . 1 . . . . . . Corruption 3 | . . 1 . 1 . . 1 . . . . . . Feedback Blocked . | . . . . . . . . . . . . . . Robot Schematics Acquired . | . . . . . . . . . . . . . . Robots Built . | . . . . . . . . . . . . . . Authchips . | . . . . . . . . . . . . . . Time . | . . . . . . . . . . . . . . Total Robot Build Rating . | . . . . . . . . . . . . . . Part Schematics Acquired . | . . . . . . . . . . . . . . Parts Built . | . . . . . . . . . . . . . . Authchips . | . . . . . . . . . . . . . . Time . | . . . . . . . . . . . . . . Total Part Build Rating . | . . . . . . . . . . . . . . Parts Repaired 1 | . . . . . 1 . . . . . . . . Time 26 | . . . . . 26 . . . . . . . . Parts Recycled . | . . . . . . . . . . . . . . Recycled Matter . | . . . . . . . . . . . . . . Retrieved Matter . | . . . . . . . . . . . . . . Retrieved Components . | . . . . . . . . . . . . . . Parts Scanalyzed . | . . . . . . . . . . . . . . Part Schematics Acquired . | . . . . . . . . . . . . . . Parts Damaged . | . . . . . . . . . . . . . . Bothacking | -11 -10 -9 -8 -8 -8 -7 -7 -7 -7 -6 -6 -6 -5 ------------ Run | Yrd Mat Mat Mat Gar Mat Fac Gar Sto Gar Fac DSF Gar Fac Used RIF Installer 3 | . . . . 1 . . 1 . . . . 1 . Hotswap 1 | . . . . . . . . . . . . 1 . Zone Cloak 1 | . . . . . . . 1 . . . . . . Robots Hacked 13 | . . . . . 10 . 2 . 1 . . . . Non-combat 1 | . . . . . 1 . . . . . . . . Combat 12 | . . . . . 9 . 2 . 1 . . . . Robot Hacks Applied 14 | . . . . . 11 . 2 . 1 . . . . no_distress 1 | . . . . . 1 . . . . . . . . reboot_system 1 | . . . . . 1 . . . . . . . . go_dormant 2 | . . . . . 2 . . . . . . . . formatsys_high 10 | . . . . . 7 . 2 . 1 . . . . Relay Couplers Released 20 | . . . . 14 . . 3 . 3 . . . . Machine Destruction 20 | . . . . 14 . . 3 . 3 . . . . Attached 5 | . . . . . 3 . 1 . 1 . . . . Fabnet Peak Effective % . | . . . . . . . . . . . . . . Robots Rewired 4 | . . . . 4 . . . . . . . . . Allies Hacked . | . . . . . . . . . . . . . . Hacks Repelled . | . . . . . . . . . . . . . . Allies | -11 -10 -9 -8 -8 -8 -7 -7 -7 -7 -6 -6 -6 -5 -------- Run | Yrd Mat Mat Mat Gar Mat Fac Gar Sto Gar Fac DSF Gar Fac Total Allies 14 | . . . . 4 7 . 2 . 1 . . . . Largest Group 8 | . . . . 3 8 1 2 2 2 . . . . Highest-Rated Group 187 | . . . . 88 187 29 64 64 64 . . . . Highest-Rated Ally 39 | . . . . 39 39 29 32 32 32 . . . . Total Orders . | . . . . . . . . . . . . . . Ally Attacks 87 | . . . . 9 58 2 10 . 8 . . . . Total Damage 2430 | . . . . 162 1735 13 304 . 216 . . . . Kills 20 | . . . . 1 13 1 2 . 3 . . . . Allies Corrupted . | . . . . . . . . . . . . . . Allies Melted . | . . . . . . . . . . . . . . Intel | -11 -10 -9 -8 -8 -8 -7 -7 -7 -7 -6 -6 -6 -5 ------- Run | Yrd Mat Mat Mat Gar Mat Fac Gar Sto Gar Fac DSF Gar Fac Active Infowar (turns) . | . . . . . . . . . . . . . . Robot Analysis Total . | . . . . . . . . . . . . . . Derelict Logs Recovered . | . . . . . . . . . . . . . . Drone Launches . | . . . . . . . . . . . . . . Drone Recoveries . | . . . . . . . . . . . . . . Exploration | -11 -10 -9 -8 -8 -8 -7 -7 -7 -7 -6 -6 -6 -5 ------------- Run | Yrd Mat Mat Mat Gar Mat Fac Gar Sto Gar Fac DSF Gar Fac Turns Passed 5166 | . 123 624 853 1208 732 108 543 15 317 112 129 387 15 Spaces Moved 3080 | 1 63 359 475 761 486 86 298 10 196 93 76 168 8 Core 2 | . . 2 . . . . . . . . . . . Treads . | . . . . . . . . . . . . . . Legs 252 | 1 63 188 . . . . . . . . . . . Wheels 2826 | . . 169 475 761 486 86 298 10 196 93 76 168 8 Hover . | . . . . . . . . . . . . . . Flight . | . . . . . . . . . . . . . . Fastest Speed 90 | 120 120 90 120 120 105 120 120 120 120 105 105 120 180 Average Speed 127 | 120 170 150 120 120 118 120 127 120 120 116 116 161 180 Slowest Speed 400 | 120 190 400 120 120 120 120 150 120 120 150 120 180 180 Overloaded Moves . | . . . . . . . . . . . . . . Propulsion Burnouts . | . . . . . . . . . . . . . . Robots Hopped . | . . . . . . . . . . . . . . Potential Cave-ins . | . . . . . . . . . . . . . . Cave-ins Triggered . | . . . . . . . . . . . . . . Exploration Rate (%) 31 | 2 19 28 37 80 54 2 32 7 35 2 71 38 . Regions Visited 13 Branch Regions 1 Pre-discovered Areas . | . . . . . . . . . . . . . . Known Exits Taken 8 | 1 1 1 1 . 1 1 . 1 . 1 . . . Unknown Exits Taken . | . . . . . . . . . . . . . . Scrap Searched . | . . . . . . . . . . . . . . Spaces Dug 4 | . . . 3 . 1 . . . . . . . . Terrain Destroyed 49 | . . . 15 . 1 . . . 31 . . 2 . Melee 4 | . . . 3 . 1 . . . . . . . . Projectile 2 | . . . . . . . . . . . . 2 . AOE 43 | . . . 12 . . . . . 31 . . . . Terrain Rammed . | . . . . . . . . . . . . . . Walls Destroyed . | . . . . . . . . . . . . . . Machines Disabled . | . . . . . . . . . . . . . . Actions | -11 -10 -9 -8 -8 -8 -7 -7 -7 -7 -6 -6 -6 -5 --------- Run | Yrd Mat Mat Mat Gar Mat Fac Gar Sto Gar Fac DSF Gar Fac Total 3861 | . 76 413 670 936 585 90 419 13 231 96 111 213 8 Wait 235 | . 8 11 116 14 36 . 46 2 . . . 2 . Move 3068 | . 62 358 475 760 485 86 296 10 195 92 75 166 8 Hop . | . . . . . . . . . . . . . . Pick Up 48 | . 2 9 14 8 8 1 1 . 3 . 2 . . Fast Attach 28 | . 1 6 . . 4 2 1 . 1 2 6 5 . Attach 13 | . . . 3 1 1 . 2 1 2 . 1 2 . Detach 3 | . . . . . . . 1 . 1 . . 1 . Swap 51 | . . 2 10 13 9 . 10 . 5 1 1 . . Drop 49 | . 1 11 12 8 7 1 3 . . 1 5 . . Fire 173 | . 2 15 32 35 21 . 15 . 20 . 5 28 . Melee 53 | . . . 8 23 14 . 4 . 4 . . . . Ram 1 | . . . . . . . . . . . . 1 . Kick 1 | . . 1 . . . . . . . . . . . Crush . | . . . . . . . . . . . . . . Escape Stasis 103 | . . . . 39 . . 40 . . . 16 8 . Rewire 30 | . . . . 30 . . . . . . . . . Trap 5 | . . . . 5 . . . . . . . . . Miscellaneous . | . . . . . . . . . . . . . . Route ------- -11/Scrapyard -10/Materials (discovered 3 exits: *Mat x3) -9/Materials -8/Materials -8/Garrison (discovered 4 exits: *Mat x4) -8/Materials -7/Factory -7/Garrison -7/Storage -7/Garrison -6/Factory (discovered 5 exits: Fac x4 / DSF) -6/DSF -6/Garrison -5/Factory History --------- Turn | Location | Event 1 | -11/Scrapyard | Identified exit to Materials 1 | -11/Scrapyard | Discovered exit to Materials (range 0) 1 | -11/Scrapyard | Entered Materials 1 | -10/Materials | Evolved 1 slot: Power x1 56 | -10/Materials | Identified exit to Materials 124 | -10/Materials | Entered another Materials area 124 | -9/Materials | Evolved 2 slots: Utility x2 301 | -9/Materials | Build established: Hacker-Mutant 723 | -9/Materials | Identified exit to Materials 723 | -9/Materials | Discovered exit to Materials (range 7) 748 | -9/Materials | Entered another Materials area 748 | -8/Materials | Evolved 2 slots: Weapon x2 1038 | -8/Materials | Build established: Hacker-Tank 1249 | -8/Materials | Garrison activated, responded to threat 1305 | -8/Materials | Destroyed 9 combat bots 1601 | -8/Materials | Identified exit to Garrison 1601 | -8/Materials | Entered Garrison 1623 | -8/Garrison | Triggered checkpoint 1710 | -8/Garrison | Garrison Relay disabled 1767 | -8/Garrison | Triggered checkpoint 1820 | -8/Garrison | Identified exit to Materials 1820 | -8/Garrison | Discovered exit to Materials (range 13) 1889 | -8/Garrison | Triggered checkpoint 1906 | -8/Garrison | Garrison Relay disabled 2015 | -8/Garrison | Triggered checkpoint 2064 | -8/Garrison | Destroyed 7 combat bots 2119 | -8/Garrison | Discovered exit to Materials (range 14) 2141 | -8/Garrison | Triggered checkpoint 2167 | -8/Garrison | Garrison Relay disabled 2210 | -8/Garrison | Discovered exit to Materials (range 35) 2210 | -8/Garrison | Discovered exit to Materials (range 34) 2210 | -8/Garrison | Discovered exit to Materials (range 64) 2210 | -8/Garrison | Discovered exit to Materials (range 46) 2305 | -8/Garrison | Installed Relay Interface Framework 2476 | -8/Garrison | Phase Generator disabled 2588 | -8/Garrison | Build established: Bothacker-Tank 2627 | -8/Garrison | Triggered checkpoint 2673 | -8/Garrison | Triggered checkpoint 2735 | -8/Garrison | Garrison Relay disabled 2753 | -8/Garrison | Triggered checkpoint 2809 | -8/Garrison | Entered Materials 2809 | -8/Materials | Accompanied by 4 allies 3111 | -8/Materials | Lost 9 allies 3312 | -8/Materials | Repaired Lgt. Armor Plating 3527 | -8/Materials | Identified exit to Factory 3527 | -8/Materials | Discovered exit to Factory (range 12) 3541 | -8/Materials | Entered Factory 3541 | -7/Factory | Accompanied by 1 ally 3541 | -7/Factory | Evolved 2 slots: Utility x2 3617 | -7/Factory | Build established: Hacker-Tank 3649 | -7/Factory | Identified exit to Garrison 3649 | -7/Factory | Entered Garrison 3649 | -7/Garrison | Accompanied by 1 ally 3667 | -7/Garrison | Triggered checkpoint 3910 | -7/Garrison | Garrison Relay disabled 4043 | -7/Garrison | Identified exit to Storage 4043 | -7/Garrison | Discovered exit to Storage (range 15) 4143 | -7/Garrison | Expanded RIF knowledge: Zone Cloak 4192 | -7/Garrison | Entered Storage 4192 | -7/Storage | Accompanied by 2 allies 4205 | -7/Storage | Identified exit to Garrison 4207 | -7/Storage | Entered Garrison 4207 | -7/Garrison | Accompanied by 2 allies 4241 | -7/Garrison | Triggered checkpoint 4269 | -7/Garrison | Build established: Scavenger-Tank 4272 | -7/Garrison | Garrison Relay disabled 4379 | -7/Garrison | Triggered checkpoint 4392 | -7/Garrison | Triggered checkpoint 4451 | -7/Garrison | Triggered checkpoint 4489 | -7/Garrison | Identified exit to Factory 4489 | -7/Garrison | Discovered exit to Factory (range 15) 4524 | -7/Garrison | Entered Factory 4524 | -6/Factory | Evolved 2 slots: Propulsion x2 4533 | -6/Factory | Identified exit to Factory 4635 | -6/Factory | Identified exit to DSF 4636 | -6/Factory | Entered DSF 4690 | -6/DSF | Additional patrols routed to DSF 4747 | -6/DSF | Identified exit to Garrison 4747 | -6/DSF | Discovered exit to Garrison (range 16) 4765 | -6/DSF | Entered Garrison 4791 | -6/Garrison | Triggered checkpoint 4846 | -6/Garrison | Expanded RIF knowledge: Hotswap 4867 | -6/Garrison | Triggered checkpoint 4891 | -6/Garrison | Triggered checkpoint 4895 | -6/Garrison | Spotted B-75 Beast 4933 | -6/Garrison | Destroyed B-75 Beast 5021 | -6/Garrison | Lost 6 parts (1p2n3u) 5033 | -6/Garrison | Triggered checkpoint 5034 | -6/Garrison | Destroyed 9 combat bots 5087 | -6/Garrison | Triggered checkpoint 5134 | -6/Garrison | Discovered exit to Factory (range 10) 5152 | -6/Garrison | Entered Factory 5152 | -5/Factory | Evolved 2 slots: Utility x2 5167 | -5/Factory | Self-destructed Last Messages --------------- 05102_ S-27 Virus suffers critical hit (Blast). 05102_ Destroyed VTOL Module. 05103_ Acquired 16 matter. 05103_ Acquired 6 matter. 05103_ Acquired 2 matter. 05105_ S-27 Virus destroyed. 05106_ Acquired 11 matter. 05106_ Acquired 3 matter. 05106_ Acquired 2 matter. 05109_ S-27 Virus destroyed. 05110_ Acquired 17 matter. 05110_ Acquired 5 matter. 05134_ EXIT=FOUND: FACTORY 05150_ Attempting to access garrison exit controls... RIF authorized. PARAMETERS=UTILITY+2 LOCATION=FACTORY GOAL=ESCAPE 05157_ Acquired 10 matter. Map ----- +----------------------------------------------------+ | ?????????????????????????????????????????????????? | | ?????????????????????????????????????????????????? | | ?????????????????????????????????????????????????? | | ?????????????????????????????????????????????????? | | ?????????????????????????????????????????????????? | | ?????????????????????????????????????????????????? | | ?????????????????????????????????????????????????? | | ?????????????????????????????????????????????????? | | ?????????????????????????????????????????????????? | | ??????????????????? ????????????????????????????? | | ??????????????????? ????????????????????????????? | | ????????????"??""? #???????????????????????????? | | ????????????" ""F"" #???????????????????????????? | | ???????????"" "" "" ###?????????????????????????? | | ???????????? ??????????????????????????? | | ????????????? ??????????????????????????? | | ?????????????? ??????????????????????????? | | ??????????????? ???????????????????????????? | | ???????????????# ???????????????????????????? | | ???????????????# ###########?????????????????? | | ???????????????# # #?????????????????? | | ???????????????# # #?????????????????? | | ???????????????# # """ #?????????????????? | | ???????????????# # """ =]#?????????????????? | | ???????????????# + """ =!#?????????????????? | | ???????????????# # @ #?????????????????? | | ???????????????# #% #?????????????????? | | ???????????????# # #?????????????????? | | ???????????????#################?????????????????? | | ?????????????????????????????????????????????????? | | ?????????????????????????????????????????????????? | | ?????????????????????????????????????????????????? | | ?????????????????????????????????????????????????? | | ?????????????????????????????????????????????????? | | ?????????????????????????????????????????????????? | | ?????????????????????????????????????????????????? | | ?????????????????????????????????????????????????? | | ?????????????????????????????????????????????????? | | ?????????????????????????????????????????????????? | | ?????????????????????????????????????????????????? | | ?????????????????????????????????????????????????? | | ?????????????????????????????????????????????????? | | ?????????????????????????????????????????????????? | | ?????????????????????????????????????????????????? | | ?????????????????????????????????????????????????? | | ?????????????????????????????????????????????????? | | ?????????????????????????????????????????????????? | | ?????????????????????????????????????????????????? | | ?????????????????????????????????????????????????? | | ?????????????????????????????????????????????????? | +----------------------------------------------------+ Best States ------------- Heat Dissipation 70 Energy Generation 29 Energy Capacity 480 Matter Stores 379 Matter Capacity 450 Sight Range 16 Terrain Scan Density 10 Armor Coverage 300 Resistance: KI 35 Resistance: TH 35 Resistance: EX 35 Resistance: EM 35 Resistance: I 35 Resistance: S 35 Resistance: P 35 Core Shielding 20 Propulsion Shielding 33 Evasion (%) 55 Offensive Hacking 20 Relay Coupler Types 2 Relay Coupler Value 56 Item Schematics ----------------- None Robot Schematics ------------------ None Fabricated ------------ Nothing Repaired ---------- Lgt. Armor Plating | 8% | -8/Materials Alien Tech Used ----------------- None Achievements -------------- Factory Defaults Infiltrator Challenges ------------ None Game ------ Seed PitchforkAutogunTube Manual? 0 Play Time 01:02:34 Cumulative 105.0 hours Start 2025.07.26 @ 21:00:39 End 2025.07.28 @ 00:12:26 Sessions 5 Manual Loads 0 Difficulty Explorer Special Mode None Game No. 136 Rogue 49 Adventurer 59 Explorer 28 Win Type - Total 14 Types 12/0/2/0/0/0/0/0/0/0 Lore% 31 Gallery% 58 Achievement% 49 Wizard Run 0 Options --------- Layout 2 ASCII 0 Keyboard 1 Movement Arrows Keybinds 1 Fullscreen 2 Font 32/Smallcaps Map View 50x44 Zoom Use 0% Tactical HUD 1 Map Filters NONE Filters NONE Steam 1 RUN: ddd8850f-cc25-4bcd-a62e-20db0c53ef82